[Event "Titled Tuesday Blitz March 01 Late 2022"]
[White "Caruana, Fabiano"]
[Black "Maksimovic, Bojan"]
[WhiteFideId "2020009"]
[BlackFideId "14408120"]
[WhiteElo "2744"]
[BlackElo "2450"]
[Result "1-0"]
[Round "05"]
[TimeControl "180+1"]
[Date "2022.03.01"]
[WhiteClock "0:00:36"]
[BlackClock "0:00:01"]

1. Nf3 {[%clk 0:02:57]}  g6 {[%clk 0:02:56]} 2. d4 {[%clk 0:02:56]}  Bg7 {[%clk 0:02:54]} 3. Nbd2 {[%clk 0:02:56]}  c5 {[%clk 0:02:49]} 4. dxc5 {[%clk 0:02:55]}  Na6 {[%clk 0:02:45]} 5. Nb3 {[%clk 0:02:47]}  Nxc5 {[%clk 0:02:36]} 6. Nxc5 {[%clk 0:02:48]}  Qa5+ {[%clk 0:02:36]} 7. c3 {[%clk 0:02:48]}  Qxc5 {[%clk 0:02:36]} 8. e4 {[%clk 0:02:49]}  d6 {[%clk 0:02:29]} 9. Be3 {[%clk 0:02:48]}  Qc7 {[%clk 0:02:29]} 10. Bb5+ {[%clk 0:02:36]}  Bd7 {[%clk 0:02:28]} 11. Bxd7+ {[%clk 0:02:37]}  Qxd7 {[%clk 0:02:29]} 12. O-O {[%clk 0:02:37]}  Qc7 {[%clk 0:02:25]} 13. Re1 {[%clk 0:02:22]}  Nf6 {[%clk 0:02:24]} 14. Qd3 {[%clk 0:02:22]}  O-O {[%clk 0:02:22]} 15. h3 {[%clk 0:02:22]}  Nd7 {[%clk 0:02:22]} 16. Rac1 {[%clk 0:02:20]}  Rfc8 {[%clk 0:02:20]} 17. b3 {[%clk 0:02:17]}  Qa5 {[%clk 0:02:19]} 18. Bd4 {[%clk 0:02:06]}  Qxa2 {[%clk 0:02:05]} 19. Qb5 {[%clk 0:02:05]}  Bxd4 {[%clk 0:01:39]} 20. cxd4 {[%clk 0:02:03]}  Nb6 {[%clk 0:01:28]} 21. Qg5 {[%clk 0:01:54]}  f6 {[%clk 0:01:17]} 22. Qg4 {[%clk 0:01:44]}  Qxb3 {[%clk 0:01:16]} 23. d5 {[%clk 0:01:44]}  Qb5 {[%clk 0:01:09]} 24. Nd4 {[%clk 0:01:34]}  Qe8 {[%clk 0:01:03]} 25. Ne6 {[%clk 0:01:33]}  Qf7 {[%clk 0:00:55]} 26. h4 {[%clk 0:01:24]}  f5 {[%clk 0:00:31]} 27. Qg5 {[%clk 0:01:11]}  fxe4 {[%clk 0:00:17]} 28. Rxc8+ {[%clk 0:01:10]}  Rxc8 {[%clk 0:00:17]} 29. Rxe4 {[%clk 0:01:11]}  Nd7 {[%clk 0:00:13]} 30. Rf4 {[%clk 0:01:09]}  Nf6 {[%clk 0:00:12]} 31. h5 {[%clk 0:01:03]}  Kh8 {[%clk 0:00:10]} 32. h6 {[%clk 0:00:56]}  Rc1+ {[%clk 0:00:07]} 33. Kh2 {[%clk 0:00:55]}  Rc8 {[%clk 0:00:08]} 34. Qg3 {[%clk 0:00:51]}  b5 {[%clk 0:00:07]} 35. Qa3 {[%clk 0:00:45]}  Qg8 {[%clk 0:00:05]} 36. Qxa7 {[%clk 0:00:42]}  Nxd5 {[%clk 0:00:05]} 37. Qd4+ {[%clk 0:00:41]}  Nf6 {[%clk 0:00:01]} 38. Rxf6 {[%clk 0:00:41]}  Rc4 {[%clk 0:00:01]} 39. Qb2 {[%clk 0:00:36]} 1-0


[Site "https://www.chess.com"]

[Event "Titled Tuesday Blitz March 01 Late 2022"]
[White "Chernomordik, Pavel"]
[Black "Zhou, Qiyu"]
[WhiteFideId "2804530"]
[BlackFideId "505161"]
[WhiteElo "2249"]
[BlackElo "1925"]
[Result "1-0"]
[Round "05"]
[TimeControl "180+1"]
[Date "2022.03.02"]
[WhiteClock "0:01:09"]
[BlackClock "0:00:40"]

1. e4 {[%clk 0:03:00]}  c5 {[%clk 0:02:57]} 2. Nc3 {[%clk 0:02:59]}  d6 {[%clk 0:02:57]} 3. f4 {[%clk 0:02:59]}  Nf6 {[%clk 0:02:56]} 4. Nf3 {[%clk 0:02:59]}  g6 {[%clk 0:02:56]} 5. Bb5+ {[%clk 0:02:53]}  Nc6 {[%clk 0:02:55]} 6. O-O {[%clk 0:02:50]}  Bg7 {[%clk 0:02:54]} 7. d3 {[%clk 0:02:49]}  O-O {[%clk 0:02:54]} 8. Bxc6 {[%clk 0:02:47]}  bxc6 {[%clk 0:02:55]} 9. Qe1 {[%clk 0:02:47]}  d5 {[%clk 0:02:38]} 10. e5 {[%clk 0:02:44]}  Ne8 {[%clk 0:02:38]} 11. Na4 {[%clk 0:02:41]}  c4 {[%clk 0:02:30]} 12. d4 {[%clk 0:02:38]}  Nc7 {[%clk 0:02:26]} 13. b3 {[%clk 0:02:34]}  Ba6 {[%clk 0:02:24]} 14. Rf2 {[%clk 0:02:33]}  Bb5 {[%clk 0:02:13]} 15. Nc5 {[%clk 0:02:31]}  e6 {[%clk 0:01:54]} 16. a4 {[%clk 0:02:27]}  Ba6 {[%clk 0:01:54]} 17. Ba3 {[%clk 0:02:25]}  Re8 {[%clk 0:01:54]} 18. Bb4 {[%clk 0:02:16]}  Rb8 {[%clk 0:01:41]} 19. Ba5 {[%clk 0:02:15]}  Bc8 {[%clk 0:01:41]} 20. Qc3 {[%clk 0:02:10]}  cxb3 {[%clk 0:01:40]} 21. cxb3 {[%clk 0:02:09]}  Qe7 {[%clk 0:01:40]} 22. Ne1 {[%clk 0:02:01]}  Na6 {[%clk 0:01:39]} 23. Ned3 {[%clk 0:01:57]}  Qh4 {[%clk 0:01:29]} 24. g3 {[%clk 0:01:53]}  Qg4 {[%clk 0:01:23]} 25. Kg2 {[%clk 0:01:49]}  h5 {[%clk 0:01:19]} 26. h3 {[%clk 0:01:49]}  Qf5 {[%clk 0:01:20]} 27. Nxa6 {[%clk 0:01:36]}  Bxa6 {[%clk 0:01:19]} 28. Nc5 {[%clk 0:01:37]}  Bb7 {[%clk 0:01:16]} 29. Qf3 {[%clk 0:01:32]}  g5 {[%clk 0:00:47]} 30. Qxh5 {[%clk 0:01:21]}  Bf8 {[%clk 0:00:41]} 31. fxg5 {[%clk 0:01:11]}  Qg6 {[%clk 0:00:39]} 32. Qxg6+ {[%clk 0:01:10]}  fxg6 {[%clk 0:00:40]} 33. Nd7 {[%clk 0:01:09]} 1-0


[Site "https://www.chess.com"]

[Event "Titled Tuesday Blitz March 01 Late 2022"]
[White "Christie, Joshua"]
[Black "Zarubitski, Viachaslau"]
[WhiteFideId "7402074"]
[BlackFideId "13509373"]
[WhiteElo "2078"]
[BlackElo "2325"]
[Result "0-1"]
[Round "05"]
[TimeControl "180+1"]
[Date "2022.03.01"]
[WhiteClock "0:00:14"]
[BlackClock "0:00:31"]

1. c4 {[%clk 0:02:59]}  Nf6 {[%clk 0:02:57]} 2. Nc3 {[%clk 0:02:58]}  e6 {[%clk 0:02:56]} 3. d4 {[%clk 0:02:57]}  Nc6 {[%clk 0:02:56]} 4. Nf3 {[%clk 0:02:54]}  Bb4 {[%clk 0:02:56]} 5. Bg5 {[%clk 0:02:52]}  h6 {[%clk 0:02:54]} 6. Bh4 {[%clk 0:02:51]}  d5 {[%clk 0:02:46]} 7. e3 {[%clk 0:02:49]}  g5 {[%clk 0:02:42]} 8. Bg3 {[%clk 0:02:48]}  Ne4 {[%clk 0:02:42]} 9. Qc2 {[%clk 0:02:48]}  h5 {[%clk 0:02:42]} 10. Bd3 {[%clk 0:02:26]}  h4 {[%clk 0:02:21]} 11. Be5 {[%clk 0:02:21]}  f6 {[%clk 0:02:20]} 12. Bxe4 {[%clk 0:02:17]}  dxe4 {[%clk 0:02:19]} 13. Qxe4 {[%clk 0:02:06]}  fxe5 {[%clk 0:02:18]} 14. d5 {[%clk 0:01:42]}  exd5 {[%clk 0:02:08]} 15. cxd5 {[%clk 0:01:40]}  Bxc3+ {[%clk 0:02:02]} 16. bxc3 {[%clk 0:01:39]}  Ne7 {[%clk 0:02:03]} 17. Qxe5 {[%clk 0:01:25]}  Rf8 {[%clk 0:02:02]} 18. e4 {[%clk 0:01:13]}  g4 {[%clk 0:02:00]} 19. Qh5+ {[%clk 0:01:11]}  Kd7 {[%clk 0:01:43]} 20. Qxg4+ {[%clk 0:01:02]}  Nf5 {[%clk 0:01:42]} 21. O-O {[%clk 0:00:46]}  Qf6 {[%clk 0:01:36]} 22. exf5 {[%clk 0:00:37]}  Kd8 {[%clk 0:01:34]} 23. Rfe1 {[%clk 0:00:29]}  Bxf5 {[%clk 0:01:32]} 24. Qb4 {[%clk 0:00:30]}  Kc8 {[%clk 0:01:26]} 25. Nd4 {[%clk 0:00:29]}  Be4 {[%clk 0:01:20]} 26. Re2 {[%clk 0:00:21]}  a5 {[%clk 0:01:19]} 27. Qa3 {[%clk 0:00:19]}  Bxd5 {[%clk 0:01:16]} 28. Rae1 {[%clk 0:00:19]}  b6 {[%clk 0:01:12]} 29. c4 {[%clk 0:00:17]}  Bxc4 {[%clk 0:01:08]} 30. Rc2 {[%clk 0:00:18]}  Kb7 {[%clk 0:01:01]} 31. Nf3 {[%clk 0:00:16]}  Bd5 {[%clk 0:00:42]} 32. Re7 {[%clk 0:00:14]}  Rac8 {[%clk 0:00:35]} 33. Qe3 {[%clk 0:00:14]}  Bxf3 {[%clk 0:00:31]} 34. gxf3 {[%clk 0:00:14]}  Qg6+ {[%clk 0:00:31]} 0-1


[Site "https://www.chess.com"]

[Event "Titled Tuesday Blitz March 01 Late 2022"]
[White "Djokic, Mihailo"]
[Black "Przybylski, Wojciech"]
[WhiteFideId "976440"]
[BlackFideId "1117599"]
[WhiteElo "2008"]
[BlackElo "2133"]
[Result "1-0"]
[Round "05"]
[TimeControl "180+1"]
[Date "2022.03.02"]
[WhiteClock "0:01:21"]
[BlackClock "0:00:02"]

1. e4 {[%clk 0:03:00]}  e5 {[%clk 0:02:53]} 2. Nf3 {[%clk 0:03:00]}  Nc6 {[%clk 0:02:52]} 3. Nc3 {[%clk 0:03:00]}  Nf6 {[%clk 0:02:52]} 4. Bb5 {[%clk 0:03:00]}  Nd4 {[%clk 0:02:52]} 5. Ba4 {[%clk 0:02:59]}  Nxf3+ {[%clk 0:02:52]} 6. gxf3 {[%clk 0:02:59]}  c5 {[%clk 0:02:46]} 7. Rg1 {[%clk 0:02:48]}  a6 {[%clk 0:02:37]} 8. d3 {[%clk 0:02:47]}  g6 {[%clk 0:02:26]} 9. Rg5 {[%clk 0:02:40]}  Qc7 {[%clk 0:02:09]} 10. f4 {[%clk 0:02:36]}  Bd6 {[%clk 0:02:05]} 11. fxe5 {[%clk 0:02:27]}  Bxe5 {[%clk 0:02:05]} 12. Qf3 {[%clk 0:02:26]}  O-O {[%clk 0:01:54]} 13. Bb3 {[%clk 0:02:21]}  d6 {[%clk 0:01:45]} 14. Bf4 {[%clk 0:02:17]}  Qe7 {[%clk 0:01:36]} 15. Bxe5 {[%clk 0:02:13]}  dxe5 {[%clk 0:01:36]} 16. Qg3 {[%clk 0:02:12]}  Re8 {[%clk 0:01:32]} 17. O-O-O {[%clk 0:02:09]}  Bd7 {[%clk 0:01:26]} 18. Rg1 {[%clk 0:02:05]}  Kh8 {[%clk 0:00:59]} 19. Qh4 {[%clk 0:01:56]}  Qd6 {[%clk 0:00:29]} 20. Bxf7 {[%clk 0:01:54]}  Re7 {[%clk 0:00:28]} 21. Bxg6 {[%clk 0:01:54]}  Rg8 {[%clk 0:00:24]} 22. Bf5 {[%clk 0:01:53]}  Reg7 {[%clk 0:00:16]} 23. Rxg7 {[%clk 0:01:53]}  Rxg7 {[%clk 0:00:16]} 24. Rxg7 {[%clk 0:01:53]}  Kxg7 {[%clk 0:00:17]} 25. Qg5+ {[%clk 0:01:54]}  Kf7 {[%clk 0:00:17]} 26. h4 {[%clk 0:01:47]}  Qd4 {[%clk 0:00:13]} 27. Bxd7 {[%clk 0:01:45]}  Nxd7 {[%clk 0:00:10]} 28. Nd5 {[%clk 0:01:44]}  Qxf2 {[%clk 0:00:04]} 29. Qe7+ {[%clk 0:01:44]}  Kg6 {[%clk 0:00:04]} 30. b3 {[%clk 0:01:39]}  Nf6 {[%clk 0:00:02]} 31. Nxf6 {[%clk 0:01:32]}  Qxf6 {[%clk 0:00:02]} 32. h5+ {[%clk 0:01:27]}  Kg5 {[%clk 0:00:02]} 33. Qxh7 {[%clk 0:01:25]}  Qf1+ {[%clk 0:00:02]} 34. Kb2 {[%clk 0:01:24]}  Qf4 {[%clk 0:00:02]} 35. Qxb7 {[%clk 0:01:22]}  Kxh5 {[%clk 0:00:02]} 36. Qxa6 {[%clk 0:01:22]}  Kg4 {[%clk 0:00:01]} 37. Qc4 {[%clk 0:01:22]}  Qe3 {[%clk 0:00:01]} 38. a4 {[%clk 0:01:22]}  Kf4 {[%clk 0:00:01]} 39. a5 {[%clk 0:01:22]}  Qg1 {[%clk 0:00:01]} 40. a6 {[%clk 0:01:22]}  Qg7 {[%clk 0:00:01]} 41. Qxc5 {[%clk 0:01:22]}  Qd7 {[%clk 0:00:01]} 42. a7 {[%clk 0:01:22]}  Qd8 {[%clk 0:00:02]} 43. Qd5 {[%clk 0:01:21]} 1-0


[Site "https://www.chess.com"]

[Event "Titled Tuesday Blitz March 01 Late 2022"]
[White "Dubov, Daniil"]
[Black "Khabinets, Ivan"]
[WhiteFideId "24126055"]
[BlackFideId "14115980"]
[WhiteElo "2791"]
[BlackElo "2114"]
[Result "1-0"]
[Round "05"]
[TimeControl "180+1"]
[Date "2022.03.02"]
[WhiteClock "0:01:43"]
[BlackClock "0:00:16"]

1. e4 {[%clk 0:03:00]}  e5 {[%clk 0:02:56]} 2. Nf3 {[%clk 0:02:57]}  Nc6 {[%clk 0:02:56]} 3. Bc4 {[%clk 0:02:57]}  Nf6 {[%clk 0:02:55]} 4. d3 {[%clk 0:02:57]}  Be7 {[%clk 0:02:55]} 5. O-O {[%clk 0:02:55]}  O-O {[%clk 0:02:55]} 6. Re1 {[%clk 0:02:56]}  d6 {[%clk 0:02:55]} 7. a4 {[%clk 0:02:54]}  Kh8 {[%clk 0:02:49]} 8. Nc3 {[%clk 0:02:47]}  Be6 {[%clk 0:02:47]} 9. Nd5 {[%clk 0:02:46]}  Bxd5 {[%clk 0:02:44]} 10. exd5 {[%clk 0:02:45]}  Nb4 {[%clk 0:02:44]} 11. d4 {[%clk 0:02:45]}  e4 {[%clk 0:02:32]} 12. Nd2 {[%clk 0:02:44]}  Nbxd5 {[%clk 0:02:32]} 13. Nxe4 {[%clk 0:02:41]}  c6 {[%clk 0:02:31]} 14. Ng3 {[%clk 0:02:40]}  Re8 {[%clk 0:02:20]} 15. Bd2 {[%clk 0:02:39]}  Bf8 {[%clk 0:02:19]} 16. Rxe8 {[%clk 0:02:37]}  Qxe8 {[%clk 0:02:17]} 17. Qf3 {[%clk 0:02:38]}  Qd7 {[%clk 0:02:16]} 18. a5 {[%clk 0:02:37]}  a6 {[%clk 0:02:16]} 19. Bd3 {[%clk 0:02:36]}  Re8 {[%clk 0:02:12]} 20. h3 {[%clk 0:02:34]}  Nc7 {[%clk 0:01:52]} 21. Bg5 {[%clk 0:02:28]}  Nfd5 {[%clk 0:00:56]} 22. c4 {[%clk 0:02:23]}  Nb4 {[%clk 0:00:56]} 23. Bf5 {[%clk 0:02:22]}  Ne6 {[%clk 0:00:56]} 24. Qb3 {[%clk 0:02:12]}  d5 {[%clk 0:00:27]} 25. Bxe6 {[%clk 0:01:56]}  Qxe6 {[%clk 0:00:20]} 26. c5 {[%clk 0:01:57]}  Qg6 {[%clk 0:00:14]} 27. Qxb4 {[%clk 0:01:54]}  Qxg5 {[%clk 0:00:15]} 28. Qxb7 {[%clk 0:01:55]}  Qd2 {[%clk 0:00:15]} 29. Qxc6 {[%clk 0:01:53]}  Qxb2 {[%clk 0:00:16]} 30. Qxe8 {[%clk 0:01:52]}  Qxa1+ {[%clk 0:00:16]} 31. Kh2 {[%clk 0:01:51]}  Kg8 {[%clk 0:00:17]} 32. c6 {[%clk 0:01:47]}  Qc3 {[%clk 0:00:16]} 33. Qd7 {[%clk 0:01:43]} 1-0


[Site "https://www.chess.com"]

[Event "Titled Tuesday Blitz March 01 Late 2022"]
[White "Gareyev, Timur"]
[Black "Ponkratov, Pavel"]
[WhiteFideId "14200937"]
[BlackFideId "4157800"]
[WhiteElo "2586"]
[BlackElo "2487"]
[Result "1-0"]
[Round "05"]
[TimeControl "180+1"]
[Date "2022.03.01"]
[WhiteClock "0:00:07"]
[BlackClock "0:00:09"]

1. Nf3 {[%clk 0:03:00]}  Nf6 {[%clk 0:02:57]} 2. g3 {[%clk 0:02:55]}  g6 {[%clk 0:02:57]} 3. b4 {[%clk 0:02:49]}  Bg7 {[%clk 0:02:58]} 4. Bb2 {[%clk 0:02:49]}  O-O {[%clk 0:02:58]} 5. a4 {[%clk 0:02:42]}  a5 {[%clk 0:02:52]} 6. b5 {[%clk 0:02:41]}  b6 {[%clk 0:02:52]} 7. d3 {[%clk 0:02:37]}  Bb7 {[%clk 0:02:52]} 8. Nbd2 {[%clk 0:02:33]}  c6 {[%clk 0:02:33]} 9. Bg2 {[%clk 0:02:28]}  cxb5 {[%clk 0:02:33]} 10. axb5 {[%clk 0:02:28]}  d5 {[%clk 0:02:24]} 11. O-O {[%clk 0:02:08]}  Nbd7 {[%clk 0:02:22]} 12. Nd4 {[%clk 0:02:09]}  Rc8 {[%clk 0:02:15]} 13. c4 {[%clk 0:02:07]}  Qc7 {[%clk 0:01:41]} 14. Rc1 {[%clk 0:01:58]}  Qd6 {[%clk 0:01:17]} 15. cxd5 {[%clk 0:01:33]}  Nxd5 {[%clk 0:01:10]} 16. Nc4 {[%clk 0:01:29]}  Qb4 {[%clk 0:01:03]} 17. Bxd5 {[%clk 0:01:15]}  Bxd5 {[%clk 0:00:56]} 18. Ba3 {[%clk 0:01:06]}  Bxd4 {[%clk 0:00:47]} 19. Bxb4 {[%clk 0:01:06]}  axb4 {[%clk 0:00:48]} 20. Qb3 {[%clk 0:00:53]}  Bc5 {[%clk 0:00:45]} 21. Qb2 {[%clk 0:00:52]}  e6 {[%clk 0:00:30]} 22. e4 {[%clk 0:00:47]}  Bb7 {[%clk 0:00:26]} 23. d4 {[%clk 0:00:38]}  Be7 {[%clk 0:00:25]} 24. Rfe1 {[%clk 0:00:35]}  Ra8 {[%clk 0:00:20]} 25. Nxb6 {[%clk 0:00:21]}  Nxb6 {[%clk 0:00:20]} 26. Rc7 {[%clk 0:00:21]}  Na4 {[%clk 0:00:20]} 27. Qb3 {[%clk 0:00:20]}  Bxe4 {[%clk 0:00:20]} 28. Rxe7 {[%clk 0:00:19]}  Bd5 {[%clk 0:00:18]} 29. Qxb4 {[%clk 0:00:19]}  Rfc8 {[%clk 0:00:18]} 30. b6 {[%clk 0:00:19]}  Rcb8 {[%clk 0:00:17]} 31. b7 {[%clk 0:00:13]}  Ra7 {[%clk 0:00:18]} 32. Rc1 {[%clk 0:00:10]}  Rbxb7 {[%clk 0:00:11]} 33. Rxb7 {[%clk 0:00:09]}  Bxb7 {[%clk 0:00:11]} 34. h4 {[%clk 0:00:06]}  Bd5 {[%clk 0:00:11]} 35. h5 {[%clk 0:00:06]}  Kg7 {[%clk 0:00:11]} 36. Rc8 {[%clk 0:00:06]}  Kh6 {[%clk 0:00:10]} 37. Qf8+ {[%clk 0:00:07]}  Kxh5 {[%clk 0:00:10]} 38. Qg7 {[%clk 0:00:07]}  Kg5 {[%clk 0:00:10]} 39. Qe5+ {[%clk 0:00:08]}  Kh6 {[%clk 0:00:10]} 40. Rh8 {[%clk 0:00:08]}  Nc3 {[%clk 0:00:09]} 41. Qf4+ {[%clk 0:00:09]}  Kg7 {[%clk 0:00:10]} 42. Qe5+ {[%clk 0:00:08]}  f6 {[%clk 0:00:10]} 43. Rg8+ {[%clk 0:00:07]}  Kxg8 {[%clk 0:00:10]} 44. Qb8+ {[%clk 0:00:07]}  Kg7 {[%clk 0:00:11]} 45. Qxa7+ {[%clk 0:00:08]}  Kh6 {[%clk 0:00:12]} 46. Qf7 {[%clk 0:00:07]}  Ne2+ {[%clk 0:00:11]} 47. Kh2 {[%clk 0:00:07]}  Nxd4 {[%clk 0:00:12]} 48. Qxf6 {[%clk 0:00:07]}  Nf3+ {[%clk 0:00:13]} 49. Kh3 {[%clk 0:00:07]}  Ng5+ {[%clk 0:00:12]} 50. Kg4 {[%clk 0:00:07]}  Bf3+ {[%clk 0:00:11]} 51. Kh4 {[%clk 0:00:06]}  e5 {[%clk 0:00:08]} 52. Qxg5+ {[%clk 0:00:06]}  Kg7 {[%clk 0:00:09]} 53. Qe7+ {[%clk 0:00:07]} 1-0


[Site "https://www.chess.com"]

[Event "Titled Tuesday Blitz March 01 Late 2022"]
[White "Goryachkina, Aleksandra"]
[Black "Kopczynski, Michal"]
[WhiteFideId "4147103"]
[BlackFideId "1124200"]
[WhiteElo "2426"]
[BlackElo "2235"]
[Result "1-0"]
[Round "05"]
[TimeControl "180+1"]
[Date "2022.03.02"]
[WhiteClock "0:00:21"]
[BlackClock "0:00:02"]

1. e4 {[%clk 0:02:59]}  c5 {[%clk 0:02:58]} 2. Nf3 {[%clk 0:02:59]}  d6 {[%clk 0:02:58]} 3. c3 {[%clk 0:02:59]}  Nf6 {[%clk 0:02:56]} 4. Be2 {[%clk 0:02:59]}  g6 {[%clk 0:02:56]} 5. O-O {[%clk 0:02:59]}  Bg7 {[%clk 0:02:56]} 6. Bb5+ {[%clk 0:02:59]}  Nc6 {[%clk 0:02:53]} 7. d4 {[%clk 0:02:58]}  cxd4 {[%clk 0:02:53]} 8. cxd4 {[%clk 0:02:58]}  O-O {[%clk 0:02:54]} 9. Nc3 {[%clk 0:02:57]}  Bg4 {[%clk 0:02:53]} 10. Be3 {[%clk 0:02:45]}  d5 {[%clk 0:02:46]} 11. e5 {[%clk 0:02:43]}  Ne4 {[%clk 0:02:42]} 12. h3 {[%clk 0:02:23]}  Bf5 {[%clk 0:02:36]} 13. Rc1 {[%clk 0:02:20]}  Qd7 {[%clk 0:02:25]} 14. Nxe4 {[%clk 0:02:16]}  dxe4 {[%clk 0:02:13]} 15. Nd2 {[%clk 0:02:16]}  h5 {[%clk 0:02:02]} 16. Nb3 {[%clk 0:02:11]}  Bxh3 {[%clk 0:01:40]} 17. gxh3 {[%clk 0:02:04]}  Qxh3 {[%clk 0:01:41]} 18. Qe2 {[%clk 0:01:43]}  Nb4 {[%clk 0:01:26]} 19. f3 {[%clk 0:01:34]}  Nd5 {[%clk 0:01:25]} 20. Rf2 {[%clk 0:01:08]}  Qg3+ {[%clk 0:01:08]} 21. Kh1 {[%clk 0:00:55]}  Rac8 {[%clk 0:00:37]} 22. Rg1 {[%clk 0:00:39]}  Qh3+ {[%clk 0:00:36]} 23. Rh2 {[%clk 0:00:39]}  Qxf3+ {[%clk 0:00:36]} 24. Qxf3 {[%clk 0:00:39]}  exf3 {[%clk 0:00:37]} 25. Bc1 {[%clk 0:00:37]}  Kh7 {[%clk 0:00:22]} 26. Bd3 {[%clk 0:00:37]}  Bh6 {[%clk 0:00:21]} 27. Rxh5 {[%clk 0:00:34]}  Rxc1 {[%clk 0:00:11]} 28. Nxc1 {[%clk 0:00:34]}  Kg7 {[%clk 0:00:09]} 29. Be4 {[%clk 0:00:31]}  Nf4 {[%clk 0:00:09]} 30. Rh2 {[%clk 0:00:30]}  Rc8 {[%clk 0:00:05]} 31. Bxf3 {[%clk 0:00:28]}  Ne6 {[%clk 0:00:05]} 32. Nb3 {[%clk 0:00:27]}  a5 {[%clk 0:00:04]} 33. a4 {[%clk 0:00:26]}  Rc4 {[%clk 0:00:02]} 34. Bd5 {[%clk 0:00:21]} 1-0


[Site "https://www.chess.com"]

[Event "Titled Tuesday Blitz March 01 Late 2022"]
[White "Gulecyuz, Deniz"]
[Black "Migot, Tangi"]
[WhiteFideId "30921341"]
[BlackFideId "662445"]
[WhiteElo "1925"]
[BlackElo "2502"]
[Result "0-1"]
[Round "05"]
[TimeControl "180+1"]
[Date "2022.03.02"]
[WhiteClock "0:00:07"]
[BlackClock "0:00:47"]

1. Nf3 {[%clk 0:02:57]}  d5 {[%clk 0:02:59]} 2. g3 {[%clk 0:02:57]}  g6 {[%clk 0:02:59]} 3. Bg2 {[%clk 0:02:58]}  Bg7 {[%clk 0:03:00]} 4. c4 {[%clk 0:02:58]}  d4 {[%clk 0:03:00]} 5. d3 {[%clk 0:02:58]}  e5 {[%clk 0:03:00]} 6. O-O {[%clk 0:02:58]}  Ne7 {[%clk 0:03:00]} 7. b4 {[%clk 0:02:58]}  O-O {[%clk 0:03:01]} 8. Nbd2 {[%clk 0:02:46]}  c5 {[%clk 0:02:59]} 9. bxc5 {[%clk 0:02:36]}  Nbc6 {[%clk 0:02:59]} 10. Rb1 {[%clk 0:02:28]}  Qc7 {[%clk 0:02:56]} 11. e3 {[%clk 0:02:03]}  dxe3 {[%clk 0:02:46]} 12. fxe3 {[%clk 0:02:03]}  Bf5 {[%clk 0:02:43]} 13. Ne1 {[%clk 0:01:43]}  Rad8 {[%clk 0:02:39]} 14. Qb3 {[%clk 0:01:21]}  Bc8 {[%clk 0:02:39]} 15. Ne4 {[%clk 0:01:13]}  Nf5 {[%clk 0:02:26]} 16. Nc3 {[%clk 0:01:10]}  Qe7 {[%clk 0:02:18]} 17. Qa3 {[%clk 0:01:05]}  e4 {[%clk 0:01:53]} 18. Nd5 {[%clk 0:00:53]}  Qe6 {[%clk 0:01:43]} 19. Bxe4 {[%clk 0:00:52]}  Nh6 {[%clk 0:01:26]} 20. Bg2 {[%clk 0:00:36]}  f5 {[%clk 0:01:24]} 21. Nb6 {[%clk 0:00:24]}  axb6 {[%clk 0:01:19]} 22. Rxb6 {[%clk 0:00:21]}  Nf7 {[%clk 0:01:12]} 23. d4 {[%clk 0:00:20]}  Qe7 {[%clk 0:01:07]} 24. d5 {[%clk 0:00:20]}  Nce5 {[%clk 0:01:07]} 25. d6 {[%clk 0:00:20]}  Qd7 {[%clk 0:01:03]} 26. Nc2 {[%clk 0:00:13]}  Ng5 {[%clk 0:00:59]} 27. Nd4 {[%clk 0:00:14]}  Ne4 {[%clk 0:00:57]} 28. Bxe4 {[%clk 0:00:14]}  fxe4 {[%clk 0:00:57]} 29. Rxf8+ {[%clk 0:00:12]}  Rxf8 {[%clk 0:00:56]} 30. Bd2 {[%clk 0:00:08]}  Qh3 {[%clk 0:00:55]} 31. Qc1 {[%clk 0:00:07]}  Ng4 {[%clk 0:00:47]} 0-1


[Site "https://www.chess.com"]

[Event "Titled Tuesday Blitz March 01 Late 2022"]
[White "Guz, Ari"]
[Black "Daggupati, Balaji"]
[WhiteFideId "2825759"]
[BlackFideId "2090759"]
[WhiteElo "1913"]
[BlackElo "2736"]
[Result "0-1"]
[Round "05"]
[TimeControl "180+1"]
[Date "2022.03.01"]
[WhiteClock "0:00:27"]
[BlackClock "0:00:49"]

1. Nf3 {[%clk 0:03:00]}  d5 {[%clk 0:02:58]} 2. b3 {[%clk 0:03:00]}  c5 {[%clk 0:02:58]} 3. Bb2 {[%clk 0:03:00]}  Nc6 {[%clk 0:02:58]} 4. g3 {[%clk 0:03:00]}  Nf6 {[%clk 0:02:58]} 5. Bg2 {[%clk 0:03:00]}  g6 {[%clk 0:02:58]} 6. O-O {[%clk 0:02:59]}  Bg7 {[%clk 0:02:59]} 7. d4 {[%clk 0:02:59]}  Ne4 {[%clk 0:02:56]} 8. e3 {[%clk 0:02:59]}  O-O {[%clk 0:02:56]} 9. Nbd2 {[%clk 0:02:59]}  Nxd2 {[%clk 0:02:52]} 10. Qxd2 {[%clk 0:02:58]}  Bg4 {[%clk 0:02:52]} 11. c3 {[%clk 0:02:55]}  Rc8 {[%clk 0:02:29]} 12. dxc5 {[%clk 0:02:47]}  e5 {[%clk 0:02:15]} 13. h3 {[%clk 0:02:35]}  Bxf3 {[%clk 0:02:12]} 14. Bxf3 {[%clk 0:02:35]}  e4 {[%clk 0:02:11]} 15. Be2 {[%clk 0:02:36]}  Qd7 {[%clk 0:02:02]} 16. Bg4 {[%clk 0:02:33]}  f5 {[%clk 0:02:01]} 17. Be2 {[%clk 0:02:34]}  Ne5 {[%clk 0:02:00]} 18. c4 {[%clk 0:02:25]}  dxc4 {[%clk 0:01:52]} 19. Qxd7 {[%clk 0:02:20]}  Nxd7 {[%clk 0:01:53]} 20. Bxc4+ {[%clk 0:02:21]}  Kh8 {[%clk 0:01:51]} 21. Bxg7+ {[%clk 0:02:21]}  Kxg7 {[%clk 0:01:52]} 22. b4 {[%clk 0:02:17]}  Ne5 {[%clk 0:01:50]} 23. Be2 {[%clk 0:02:15]}  a5 {[%clk 0:01:43]} 24. a3 {[%clk 0:02:11]}  Nc6 {[%clk 0:01:24]} 25. Bb5 {[%clk 0:01:51]}  Ne5 {[%clk 0:01:17]} 26. Rfd1 {[%clk 0:01:47]}  Rfd8 {[%clk 0:01:12]} 27. Kf1 {[%clk 0:01:24]}  Kf6 {[%clk 0:01:11]} 28. Ke2 {[%clk 0:01:21]}  Ke7 {[%clk 0:01:07]} 29. Rxd8 {[%clk 0:01:18]}  Rxd8 {[%clk 0:01:07]} 30. Rd1 {[%clk 0:01:18]}  Ra8 {[%clk 0:01:07]} 31. Rd5 {[%clk 0:01:10]}  Ke6 {[%clk 0:01:06]} 32. Rd6+ {[%clk 0:01:10]}  Ke7 {[%clk 0:01:07]} 33. Rb6 {[%clk 0:00:29]}  axb4 {[%clk 0:01:06]} 34. Rxb7+ {[%clk 0:00:29]}  Kf6 {[%clk 0:01:02]} 35. axb4 {[%clk 0:00:29]}  Nf3 {[%clk 0:00:49]} 36. c6 {[%clk 0:00:27]}  Ra1 {[%clk 0:00:49]} 0-1


[Site "https://www.chess.com"]